[Event "*** Titled Tuesday Blitz"]
[Site "Chess.com"]
[Date "2019.11.05"]
[Round "5"]
[White "Alliswell998"]
[Black "Joshukid"]
[Result "1-0"]
[WhiteElo "2528"]
[BlackElo "2683"]
[TimeControl "180+2"]
[EndTime "14:05:17 PST"]
[Termination "Alliswell998 won by resignation"]

1. d4 {[%clk 0:03:01.9]} 1... Nf6 {[%clk 0:03:00.2]} 2. Bg5 {[%clk 0:03:03.1]}
2... d5 {[%clk 0:03:01.1]} 3. Bxf6 {[%clk 0:03:04]} 3... exf6 {[%clk 0:03:03]}
4. e3 {[%clk 0:03:05.6]} 4... Bd6 {[%clk 0:03:02.1]} 5. g3 {[%clk 0:03:06.9]}
5... O-O {[%clk 0:03:03.5]} 6. Bg2 {[%clk 0:03:08.1]} 6... c6 {[%clk 0:03:04.4]}
7. Ne2 {[%clk 0:03:09.4]} 7... Nd7 {[%clk 0:02:56.9]} 8. O-O {[%clk 0:03:06.8]}
8... Re8 {[%clk 0:02:55.3]} 9. b3 {[%clk 0:03:06.5]} 9... Nf8 {[%clk 0:02:56.7]}
10. c4 {[%clk 0:03:06.9]} 10... dxc4 {[%clk 0:02:57]} 11. bxc4 {[%clk
0:03:06.9]} 11... Be6 {[%clk 0:02:56.9]} 12. c5 {[%clk 0:03:00.5]} 12... Bc7
{[%clk 0:02:56.5]} 13. Nbc3 {[%clk 0:03:01.3]} 13... f5 {[%clk 0:02:55.6]} 14.
Rb1 {[%clk 0:03:00.5]} 14... Rb8 {[%clk 0:02:52.4]} 15. Qa4 {[%clk 0:02:57.2]}
15... a6 {[%clk 0:02:31.5]} 16. Rfd1 {[%clk 0:02:44]} 16... Nd7 {[%clk
0:02:22.3]} 17. Qc2 {[%clk 0:02:36.3]} 17... g6 {[%clk 0:02:21.4]} 18. Nf4
{[%clk 0:02:33.4]} 18... Nf6 {[%clk 0:02:22.3]} 19. Nxe6 {[%clk 0:02:24.3]}
19... fxe6 {[%clk 0:02:24.2]} 20. Rb2 {[%clk 0:02:10.7]} 20... Ba5 {[%clk
0:02:17.9]} 21. Rdb1 {[%clk 0:02:07.6]} 21... Bxc3 {[%clk 0:02:11.6]} 22. Qxc3
{[%clk 0:02:09.5]} 22... Qc7 {[%clk 0:02:12.9]} 23. Rb6 {[%clk 0:02:05.1]} 23...
Nd7 {[%clk 0:02:10.2]} 24. R6b2 {[%clk 0:02:02.9]} 24... e5 {[%clk 0:02:00.7]}
25. d5 {[%clk 0:02:00.6]} 25... e4 {[%clk 0:01:49.9]} 26. d6 {[%clk 0:01:58.5]}
26... Qc8 {[%clk 0:01:50.9]} 27. Bf1 {[%clk 0:01:56.3]} 27... Ne5 {[%clk
0:01:39.6]} 28. Bc4+ {[%clk 0:01:38.5]} 28... Kg7 {[%clk 0:01:30.2]} 29. Bxa6
{[%clk 0:01:31.1]} 29... Kh6 {[%clk 0:01:16.9]} 30. Rxb7 {[%clk 0:01:27.7]}
30... Nf3+ {[%clk 0:01:17.6]} 31. Kg2 {[%clk 0:01:27.1]} 31... Rxb7 {[%clk
0:01:17]} 32. Rxb7 {[%clk 0:01:26.4]} 1-0

[Event "*** Titled Tuesday Blitz"]
[Site "Chess.com"]
[Date "2019.11.05"]
[Round "5"]
[White "German_Bazeev"]
[Black "IvanRadivojevic"]
[Result "0-1"]
[WhiteElo "2684"]
[BlackElo "2503"]
[TimeControl "180+2"]
[EndTime "14:05:26 PST"]
[Termination "IvanRadivojevic won by resignation"]

1. d4 {[%clk 0:02:55.2]} 1... Nf6 {[%clk 0:02:59.7]} 2. c4 {[%clk 0:02:55.9]}
2... e6 {[%clk 0:03:00.5]} 3. Nf3 {[%clk 0:02:55.7]} 3... Bb4+ {[%clk
0:03:01.9]} 4. Bd2 {[%clk 0:02:55.7]} 4... Qe7 {[%clk 0:03:03.3]} 5. g3 {[%clk
0:02:56.5]} 5... O-O {[%clk 0:03:04.7]} 6. Bg2 {[%clk 0:02:57.6]} 6... Bxd2+
{[%clk 0:03:06.6]} 7. Nbxd2 {[%clk 0:02:59.4]} 7... d6 {[%clk 0:03:08.1]} 8. Nf1
{[%clk 0:03:00.4]} 8... e5 {[%clk 0:03:08.3]} 9. Ne3 {[%clk 0:03:02.3]} 9... Re8
{[%clk 0:03:08.2]} 10. O-O {[%clk 0:03:03.5]} 10... c6 {[%clk 0:03:09.2]} 11.
Rc1 {[%clk 0:02:47.8]} 11... Qc7 {[%clk 0:03:09.2]} 12. c5 {[%clk 0:02:39.6]}
12... exd4 {[%clk 0:03:09]} 13. cxd6 {[%clk 0:02:39.8]} 13... Qxd6 {[%clk
0:03:10.2]} 14. Nxd4 {[%clk 0:02:39.2]} 14... Qe5 {[%clk 0:03:01.5]} 15. Nc4
{[%clk 0:02:38.5]} 15... Qh5 {[%clk 0:02:57.9]} 16. e4 {[%clk 0:02:30.4]} 16...
Qxd1 {[%clk 0:02:31.9]} 17. Rfxd1 {[%clk 0:02:32.3]} 17... Nbd7 {[%clk
0:02:09.5]} 18. f4 {[%clk 0:02:30.1]} 18... Nb6 {[%clk 0:01:46.8]} 19. Nd6
{[%clk 0:02:29.4]} 19... Rd8 {[%clk 0:01:38.9]} 20. e5 {[%clk 0:02:30.4]} 20...
Ne8 {[%clk 0:01:37.4]} 21. N4f5 {[%clk 0:02:16.5]} 21... Bxf5 {[%clk 0:01:34]}
22. Nxf5 {[%clk 0:02:18.4]} 22... Kf8 {[%clk 0:01:32.6]} 23. Kf2 {[%clk
0:02:17.2]} 23... g6 {[%clk 0:01:30.7]} 24. Ne3 {[%clk 0:02:17.1]} 24... Nc7
{[%clk 0:01:30.4]} 25. Be4 {[%clk 0:02:11.7]} 25... Ke7 {[%clk 0:01:30.6]} 26.
h4 {[%clk 0:02:06.1]} 26... Na4 {[%clk 0:01:31.1]} 27. Kf3 {[%clk 0:02:00.6]}
27... Nb5 {[%clk 0:01:23.4]} 28. b3 {[%clk 0:01:24.4]} 28... Nac3 {[%clk
0:01:20.9]} 29. Rxd8 {[%clk 0:01:12.7]} 29... Rxd8 {[%clk 0:01:22.8]} 30. a4
{[%clk 0:01:09.4]} 30... Nd4+ {[%clk 0:01:23]} 0-1

[Event "*** Titled Tuesday Blitz"]
[Site "Chess.com"]
[Date "2019.11.05"]
[Round "5"]
[White "misha_melnichuk"]
[Black "chanchakman"]
[Result "1-0"]
[WhiteElo "2511"]
[BlackElo "2154"]
[TimeControl "180+2"]
[EndTime "14:05:28 PST"]
[Termination "misha_melnichuk won by resignation"]

1. Nf3 {[%clk 0:02:57.4]} 1... Nf6 {[%clk 0:03:01.7]} 2. d4 {[%clk 0:02:58.6]}
2... g6 {[%clk 0:03:02.9]} 3. c4 {[%clk 0:02:59.7]} 3... Bg7 {[%clk 0:03:04.2]}
4. Nc3 {[%clk 0:03:01.6]} 4... d6 {[%clk 0:03:05.6]} 5. e4 {[%clk 0:03:02.6]}
5... O-O {[%clk 0:03:06.8]} 6. Be2 {[%clk 0:03:03.4]} 6... e5 {[%clk 0:03:08.2]}
7. O-O {[%clk 0:03:04.6]} 7... Nc6 {[%clk 0:03:09.9]} 8. dxe5 {[%clk 0:03:05.8]}
8... dxe5 {[%clk 0:03:11.8]} 9. Qxd8 {[%clk 0:03:06]} 9... Rxd8 {[%clk
0:03:12.8]} 10. Bg5 {[%clk 0:03:07.4]} 10... Re8 {[%clk 0:03:10.1]} 11. Nd5
{[%clk 0:03:08.2]} 11... Nxd5 {[%clk 0:03:10.1]} 12. cxd5 {[%clk 0:03:10.1]}
12... Nd4 {[%clk 0:03:06.3]} 13. Nxd4 {[%clk 0:03:11]} 13... exd4 {[%clk
0:03:07.8]} 14. Bd3 {[%clk 0:03:12.3]} 14... c5 {[%clk 0:02:53.9]} 15. dxc6
{[%clk 0:03:07.1]} 15... bxc6 {[%clk 0:02:54.6]} 16. Rfc1 {[%clk 0:03:09]} 16...
Bb7 {[%clk 0:02:48.6]} 17. f3 {[%clk 0:03:06.2]} 17... Rac8 {[%clk 0:02:42.3]}
18. Rc2 {[%clk 0:03:04.8]} 18... h6 {[%clk 0:02:19.3]} 19. Bd2 {[%clk
0:03:02.4]} 19... Rf8 {[%clk 0:02:16.1]} 20. Rac1 {[%clk 0:03:03.5]} 20... Rfe8
{[%clk 0:02:11.3]} 21. Bb4 {[%clk 0:03:02.1]} 21... Re5 {[%clk 0:02:03.7]} 22.
f4 {[%clk 0:02:52.2]} 22... Ree8 {[%clk 0:02:01.1]} 23. e5 {[%clk 0:02:52.5]}
23... g5 {[%clk 0:01:57.3]} 24. g3 {[%clk 0:02:48.9]} 24... gxf4 {[%clk
0:01:48.9]} 25. gxf4 {[%clk 0:02:50.8]} 25... Rcd8 {[%clk 0:01:42.8]} 26. Bd6
{[%clk 0:02:44.9]} 26... f6 {[%clk 0:01:40.3]} 27. Bc4+ {[%clk 0:02:28.4]} 27...
Kh8 {[%clk 0:01:35.5]} 28. Bf7 {[%clk 0:02:28.7]} 28... fxe5 {[%clk 0:01:36.7]}
29. Bxe8 {[%clk 0:02:27.1]} 29... Rxe8 {[%clk 0:01:37.5]} 30. fxe5 {[%clk
0:02:16.5]} 30... Re6 {[%clk 0:01:25.9]} 31. Rd1 {[%clk 0:01:58.1]} 31... Bxe5
{[%clk 0:01:11.9]} 32. Bxe5+ {[%clk 0:01:53]} 32... Rxe5 {[%clk 0:01:12.7]} 33.
Rxd4 {[%clk 0:01:54.3]} 33... Re7 {[%clk 0:01:01.7]} 34. Rcd2 {[%clk 0:01:48.6]}
1-0

[Event "*** Titled Tuesday Blitz"]
[Site "Chess.com"]
[Date "2019.11.05"]
[Round "5"]
[White "2nd_life"]
[Black "gorgeous1083"]
[Result "1-0"]
[WhiteElo "2412"]
[BlackElo "1990"]
[TimeControl "180+2"]
[EndTime "14:05:29 PST"]
[Termination "2nd_life won by checkmate"]

1. e4 {[%clk 0:03:01.9]} 1... e5 {[%clk 0:03:00.3]} 2. f4 {[%clk 0:03:02.4]}
2... d5 {[%clk 0:02:58.8]} 3. exd5 {[%clk 0:03:03.1]} 3... Qxd5 {[%clk
0:03:00.1]} 4. Nc3 {[%clk 0:03:03]} 4... Qa5 {[%clk 0:02:57.6]} 5. fxe5 {[%clk
0:03:01]} 5... Qxe5+ {[%clk 0:02:57.3]} 6. Be2 {[%clk 0:03:01.9]} 6... c6 {[%clk
0:02:53.9]} 7. Nf3 {[%clk 0:03:02.6]} 7... Qc7 {[%clk 0:02:55.3]} 8. O-O {[%clk
0:03:00.2]} 8... Nf6 {[%clk 0:02:53]} 9. d4 {[%clk 0:02:58.7]} 9... Bb4 {[%clk
0:02:45.1]} 10. Ne5 {[%clk 0:02:48.2]} 10... O-O {[%clk 0:02:43.4]} 11. Bc4
{[%clk 0:02:34.4]} 11... Nbd7 {[%clk 0:02:33.9]} 12. Bf4 {[%clk 0:02:27.9]}
12... Bxc3 {[%clk 0:02:11.2]} 13. Nxf7 {[%clk 0:01:49.8]} 13... Qb6 {[%clk
0:02:04.1]} 14. Ng5+ {[%clk 0:01:29.5]} 14... Kh8 {[%clk 0:02:01.9]} 15. bxc3
{[%clk 0:01:29.1]} 15... Qb2 {[%clk 0:01:08.6]} 16. Qd3 {[%clk 0:01:20.1]} 16...
a5 {[%clk 0:01:01.1]} 17. Bd6 {[%clk 0:01:14.9]} 17... Re8 {[%clk 0:00:43.4]}
18. Qxh7+ {[%clk 0:01:00.1]} 18... Nxh7 {[%clk 0:00:40.2]} 19. Nf7+ {[%clk
0:01:01.3]} 19... Kg8 {[%clk 0:00:36.1]} 20. Ne5+ {[%clk 0:01:02.2]} 20... Kh8
{[%clk 0:00:26.9]} 21. Ng6# {[%clk 0:01:01.7]} 1-0

[Event "*** Titled Tuesday Blitz"]
[Site "Chess.com"]
[Date "2019.11.05"]
[Round "5"]
[White "Tolya2"]
[Black "CzechmVIII"]
[Result "1-0"]
[WhiteElo "2399"]
[BlackElo "2091"]
[TimeControl "180+2"]
[EndTime "14:05:33 PST"]
[Termination "Tolya2 won by resignation"]

1. Nf3 {[%clk 0:03:01.9]} 1... c5 {[%clk 0:03:00.4]} 2. c4 {[%clk 0:03:01.9]}
2... Nf6 {[%clk 0:03:00.5]} 3. Nc3 {[%clk 0:03:01.8]} 3... b6 {[%clk 0:03:01.5]}
4. g3 {[%clk 0:03:02]} 4... Bb7 {[%clk 0:03:02.4]} 5. Bg2 {[%clk 0:03:03]} 5...
e6 {[%clk 0:03:03.6]} 6. d4 {[%clk 0:03:01.5]} 6... cxd4 {[%clk 0:03:02.8]} 7.
Qxd4 {[%clk 0:03:02.3]} 7... d6 {[%clk 0:02:49.1]} 8. b3 {[%clk 0:03:02.2]} 8...
Be7 {[%clk 0:02:46.6]} 9. Ba3 {[%clk 0:03:02.7]} 9... Na6 {[%clk 0:02:43.4]} 10.
Rd1 {[%clk 0:03:01.2]} 10... Nc5 {[%clk 0:02:43.8]} 11. Nb5 {[%clk 0:03:01.8]}
11... O-O {[%clk 0:02:13.3]} 12. Nxd6 {[%clk 0:02:59.7]} 12... Bxd6 {[%clk
0:01:41.5]} 13. Qxd6 {[%clk 0:03:00]} 13... Qxd6 {[%clk 0:01:40.5]} 14. Rxd6
{[%clk 0:03:00.6]} 14... Nfe4 {[%clk 0:01:29.1]} 15. Bxc5 {[%clk 0:02:46.8]}
15... bxc5 {[%clk 0:01:03.6]} 16. Rd7 {[%clk 0:02:44.2]} 16... Bc6 {[%clk
0:01:03.7]} 17. Rc7 {[%clk 0:02:44]} 17... Rfc8 {[%clk 0:01:04.8]} 18. Rxc8+
{[%clk 0:02:42.3]} 18... Rxc8 {[%clk 0:01:06.4]} 19. Ne5 {[%clk 0:02:39.1]}
19... Ba8 {[%clk 0:00:57.7]} 20. O-O {[%clk 0:02:37]} 20... Nc3 {[%clk
0:00:56.5]} 21. Re1 {[%clk 0:02:34.9]} 21... Nxa2 {[%clk 0:00:46]} 22. Ra1
{[%clk 0:02:31.4]} 22... Nc3 {[%clk 0:00:46]} 23. e3 {[%clk 0:02:23.5]} 23...
Bxg2 {[%clk 0:00:42.7]} 24. Kxg2 {[%clk 0:02:24.3]} 24... f6 {[%clk 0:00:27]}
25. Nd3 {[%clk 0:02:20.2]} 25... Rc7 {[%clk 0:00:20.2]} 26. Ra5 {[%clk
0:02:20.5]} 26... Ne4 {[%clk 0:00:20.5]} 27. f3 {[%clk 0:02:17.2]} 27... Nd2
{[%clk 0:00:21.6]} 28. Nxc5 {[%clk 0:02:16.9]} 28... Kf7 {[%clk 0:00:22.9]} 29.
Kf2 {[%clk 0:02:14.8]} 29... e5 {[%clk 0:00:17.6]} 30. Ke2 {[%clk 0:02:15]}
30... Nb1 {[%clk 0:00:18.9]} 31. Kd3 {[%clk 0:02:12.8]} 31... Ke7 {[%clk
0:00:18.9]} 32. b4 {[%clk 0:02:08.9]} 32... Kd6 {[%clk 0:00:16.1]} 33. Kc2
{[%clk 0:02:08.4]} 33... e4 {[%clk 0:00:10.2]} 1-0

[Event "*** Titled Tuesday Blitz"]
[Site "Chess.com"]
[Date "2019.11.05"]
[Round "5"]
[White "Slovak_fighter2000"]
[Black "saraswathii"]
[Result "1-0"]
[WhiteElo "2407"]
[BlackElo "2208"]
[TimeControl "180+2"]
[EndTime "14:05:39 PST"]
[Termination "Slovak_fighter2000 won by resignation"]

1. d4 {[%clk 0:03:01.8]} 1... Nc6 {[%clk 0:02:31.4]} 2. Nf3 {[%clk 0:03:02]}
2... d5 {[%clk 0:02:12.5]} 3. g3 {[%clk 0:03:03]} 3... Bf5 {[%clk 0:01:40.3]} 4.
Bg2 {[%clk 0:03:03.8]} 4... Qd7 {[%clk 0:01:40.9]} 5. Bf4 {[%clk 0:02:55.5]}
5... O-O-O {[%clk 0:01:41.4]} 6. c3 {[%clk 0:02:52.6]} 6... f6 {[%clk 0:01:42]}
7. h4 {[%clk 0:02:52.1]} 7... h5 {[%clk 0:01:39.9]} 8. Qa4 {[%clk 0:02:50.8]}
8... Kb8 {[%clk 0:01:39.8]} 9. Nbd2 {[%clk 0:02:51.3]} 9... Nh6 {[%clk
0:01:39.9]} 10. Bxh6 {[%clk 0:02:47.3]} 10... Rxh6 {[%clk 0:01:39.4]} 11. Nb3
{[%clk 0:02:46.3]} 11... e5 {[%clk 0:01:39.1]} 12. e3 {[%clk 0:02:47.1]} 12...
exd4 {[%clk 0:01:36.5]} 13. cxd4 {[%clk 0:02:42.8]} 13... Bb4+ {[%clk
0:01:32.1]} 14. Kf1 {[%clk 0:02:39.5]} 14... Bd3+ {[%clk 0:01:31.4]} 15. Kg1
{[%clk 0:02:40.4]} 15... g5 {[%clk 0:01:11.4]} 16. a3 {[%clk 0:02:39.3]} 16...
Bd6 {[%clk 0:01:06.1]} 17. hxg5 {[%clk 0:02:34.5]} 17... fxg5 {[%clk 0:01:06.3]}
18. Nxg5 {[%clk 0:02:35.4]} 18... Qf5 {[%clk 0:01:07.3]} 19. Nh3 {[%clk
0:02:35.2]} 19... Bc2 {[%clk 0:01:04.6]} 20. Qb5 {[%clk 0:02:25.5]} 20... Be7
{[%clk 0:00:45.3]} 21. Nc5 {[%clk 0:02:18.6]} 21... b6 {[%clk 0:00:36.6]} 22.
Nf4 {[%clk 0:02:12.3]} 22... Bxc5 {[%clk 0:00:29.8]} 23. dxc5 {[%clk 0:02:11.9]}
23... Ne7 {[%clk 0:00:23.5]} 24. cxb6 {[%clk 0:02:04]} 24... Rxb6 {[%clk
0:00:20.2]} 25. Qc5 {[%clk 0:02:00.3]} 25... Rdd6 {[%clk 0:00:16.3]} 26. Rxh5
{[%clk 0:02:00.4]} 26... Qf6 {[%clk 0:00:10.6]} 27. Qxc2 {[%clk 0:01:56.8]}
27... Rxb2 {[%clk 0:00:11.3]} 28. Rb1 {[%clk 0:01:50.9]} 1-0

[Event "*** Titled Tuesday Blitz"]
[Site "Chess.com"]
[Date "2019.11.05"]
[Round "5"]
[White "MaximDlugy"]
[Black "Olga_Ustinova"]
[Result "1/2-1/2"]
[WhiteElo "2795"]
[BlackElo "2394"]
[TimeControl "180+2"]
[EndTime "14:05:41 PST"]
[Termination "Game drawn by repetition"]

1. d4 {[%clk 0:03:00]} 1... Nf6 {[%clk 0:02:59.7]} 2. c4 {[%clk 0:03:00.9]} 2...
g6 {[%clk 0:03:01.1]} 3. Nc3 {[%clk 0:03:00.2]} 3... d5 {[%clk 0:03:02]} 4. Bg5
{[%clk 0:02:57.3]} 4... Ne4 {[%clk 0:02:53.2]} 5. Bh4 {[%clk 0:02:56.2]} 5...
Nxc3 {[%clk 0:02:47.3]} 6. bxc3 {[%clk 0:02:58.1]} 6... c6 {[%clk 0:02:49.2]} 7.
e3 {[%clk 0:02:56.1]} 7... Bg7 {[%clk 0:02:35.9]} 8. Nf3 {[%clk 0:02:54.6]} 8...
O-O {[%clk 0:02:36.3]} 9. Qb3 {[%clk 0:02:55.1]} 9... b6 {[%clk 0:02:20.9]} 10.
cxd5 {[%clk 0:02:52.2]} 10... cxd5 {[%clk 0:02:20.7]} 11. c4 {[%clk 0:02:53.5]}
11... Bb7 {[%clk 0:02:20.5]} 12. cxd5 {[%clk 0:02:53.6]} 12... Bxd5 {[%clk
0:02:20.1]} 13. Bc4 {[%clk 0:02:37]} 13... Bxc4 {[%clk 0:02:21.1]} 14. Qxc4
{[%clk 0:02:38.9]} 14... Nd7 {[%clk 0:02:23]} 15. O-O {[%clk 0:02:38.2]} 15...
Nf6 {[%clk 0:02:23.6]} 16. Rac1 {[%clk 0:02:35.6]} 16... Rc8 {[%clk 0:02:23.9]}
17. Qa4 {[%clk 0:02:34.6]} 17... Rxc1 {[%clk 0:02:23.8]} 18. Rxc1 {[%clk
0:02:36.1]} 18... Qb8 {[%clk 0:02:23.1]} 19. Bg3 {[%clk 0:02:34.2]} 19... Qb7
{[%clk 0:02:18.8]} 20. Rc7 {[%clk 0:02:34.8]} 20... Qe4 {[%clk 0:02:10.5]} 21.
h3 {[%clk 0:02:29.4]} 21... a5 {[%clk 0:02:11.4]} 22. Qc2 {[%clk 0:02:23.6]}
22... Qxc2 {[%clk 0:02:04.1]} 23. Rxc2 {[%clk 0:02:25.5]} 23... Ne4 {[%clk
0:02:06]} 24. Be5 {[%clk 0:02:23.6]} 24... Bxe5 {[%clk 0:01:58.8]} 25. Nxe5
{[%clk 0:02:25.5]} 25... b5 {[%clk 0:02:00.3]} 26. Nc6 {[%clk 0:02:21.3]} 26...
e6 {[%clk 0:02:01.6]} 27. Nxa5 {[%clk 0:02:22]} 27... Ra8 {[%clk 0:02:02.2]} 28.
Nb7 {[%clk 0:02:20.6]} 28... b4 {[%clk 0:01:55]} 29. Rb2 {[%clk 0:02:00.2]}
29... h5 {[%clk 0:01:54.9]} 30. f3 {[%clk 0:01:53.5]} 30... Nc3 {[%clk
0:01:54.1]} 31. Rxb4 {[%clk 0:01:53.6]} 31... Rxa2 {[%clk 0:01:50]} 32. Nd6
{[%clk 0:01:53.3]} 32... Nd5 {[%clk 0:01:51.3]} 33. Rb8+ {[%clk 0:01:53.8]}
33... Kg7 {[%clk 0:01:51.8]} 34. e4 {[%clk 0:01:50]} 34... Ne3 {[%clk
0:01:51.4]} 35. Rb7 {[%clk 0:01:49.9]} 35... Rxg2+ {[%clk 0:01:51.9]} 36. Kh1
{[%clk 0:01:51.5]} 36... Rf2 {[%clk 0:01:48.4]} 37. Rxf7+ {[%clk 0:01:51.8]}
37... Kg8 {[%clk 0:01:49.1]} 38. Rf6 {[%clk 0:01:52]} 38... Kg7 {[%clk
0:01:43.1]} 39. Ne8+ {[%clk 0:01:52.3]} 39... Kh7 {[%clk 0:01:44.1]} 40. Nc7
{[%clk 0:01:45.5]} 40... g5 {[%clk 0:01:37.5]} 41. Nxe6 {[%clk 0:01:45.9]} 41...
Rf1+ {[%clk 0:01:27.2]} 42. Kh2 {[%clk 0:01:46.3]} 42... Rf2+ {[%clk 0:01:28.5]}
43. Kg1 {[%clk 0:01:44.1]} 43... Rf1+ {[%clk 0:01:29.3]} 44. Kh2 {[%clk
0:01:44.9]} 44... Rf2+ {[%clk 0:01:30.6]} 45. Kg1 {[%clk 0:01:44.1]} 45... Rf1+
{[%clk 0:01:32]} 46. Kh2 {[%clk 0:01:45.5]} 1/2-1/2

[Event "*** Titled Tuesday Blitz"]
[Site "Chess.com"]
[Date "2019.11.05"]
[Round "5"]
[White "Agent-JL"]
[Black "politeplayer"]
[Result "1/2-1/2"]
[WhiteElo "2492"]
[BlackElo "2227"]
[TimeControl "180+2"]
[EndTime "14:05:55 PST"]
[Termination "Game drawn by agreement"]

1. d4 {[%clk 0:03:01.7]} 1... d5 {[%clk 0:02:49.1]} 2. Nf3 {[%clk 0:03:03.6]}
2... e6 {[%clk 0:02:48.8]} 3. e3 {[%clk 0:03:05.5]} 3... Bd6 {[%clk 0:02:47.1]}
4. c4 {[%clk 0:03:07.4]} 4... Nf6 {[%clk 0:02:45.1]} 5. cxd5 {[%clk 0:03:03.7]}
5... exd5 {[%clk 0:02:44.9]} 6. Nc3 {[%clk 0:03:05.6]} 6... c6 {[%clk
0:02:45.4]} 7. Bd3 {[%clk 0:03:05.4]} 7... Bg4 {[%clk 0:02:44.4]} 8. h3 {[%clk
0:03:06.5]} 8... Bh5 {[%clk 0:02:43.7]} 9. g4 {[%clk 0:02:37.4]} 9... Bg6 {[%clk
0:02:42.9]} 10. Ne5 {[%clk 0:02:37.6]} 10... Bxd3 {[%clk 0:02:34.6]} 11. Qxd3
{[%clk 0:02:37.8]} 11... Nbd7 {[%clk 0:02:28.6]} 12. f4 {[%clk 0:02:31.8]} 12...
O-O {[%clk 0:02:22.3]} 13. O-O {[%clk 0:02:01]} 13... Re8 {[%clk 0:02:16]} 14.
Bd2 {[%clk 0:02:00.9]} 14... Ne4 {[%clk 0:02:13.1]} 15. Nxe4 {[%clk 0:01:53.7]}
15... dxe4 {[%clk 0:02:12.8]} 16. Qb3 {[%clk 0:01:51.9]} 16... Bxe5 {[%clk
0:01:42.5]} 17. fxe5 {[%clk 0:01:43]} 17... Nxe5 {[%clk 0:01:25]} 18. dxe5
{[%clk 0:01:30]} 18... Qxd2 {[%clk 0:01:25.3]} 19. Rxf7 {[%clk 0:01:30.4]} 19...
Qd5 {[%clk 0:00:56.1]} 20. Qxd5 {[%clk 0:01:15.4]} 20... cxd5 {[%clk 0:00:56.5]}
21. Rxb7 {[%clk 0:01:17.3]} 21... Rxe5 {[%clk 0:00:53.6]} 22. Rd1 {[%clk
0:01:15.3]} 22... h5 {[%clk 0:00:51.6]} 23. Kg2 {[%clk 0:01:13.6]} 23... hxg4
{[%clk 0:00:49.5]} 24. hxg4 {[%clk 0:01:15.5]} 24... Rf8 {[%clk 0:00:44.3]} 25.
Rc7 {[%clk 0:01:07]} 25... Rf3 {[%clk 0:00:42.3]} 26. Rc3 {[%clk 0:01:05.1]}
1/2-1/2

[Event "*** Titled Tuesday Blitz"]
[Site "Chess.com"]
[Date "2019.11.05"]
[Round "5"]
[White "Qvalda"]
[Black "Barcelona_Guy"]
[Result "1-0"]
[WhiteElo "2547"]
[BlackElo "2729"]
[TimeControl "180+2"]
[EndTime "14:05:56 PST"]
[Termination "Qvalda won by resignation"]

1. d4 {[%clk 0:03:01.9]} 1... Nf6 {[%clk 0:03:00.8]} 2. Nf3 {[%clk 0:03:02.8]}
2... d5 {[%clk 0:03:01.8]} 3. Bg5 {[%clk 0:03:03.8]} 3... Ne4 {[%clk 0:03:02.6]}
4. Bh4 {[%clk 0:03:05.2]} 4... h5 {[%clk 0:03:03.9]} 5. Nbd2 {[%clk 0:02:59.3]}
5... f6 {[%clk 0:03:04.7]} 6. Nxe4 {[%clk 0:02:08.9]} 6... dxe4 {[%clk
0:03:05.1]} 7. Nd2 {[%clk 0:02:10.8]} 7... g5 {[%clk 0:03:03.5]} 8. Bxg5 {[%clk
0:02:11.4]} 8... fxg5 {[%clk 0:03:04.4]} 9. Nxe4 {[%clk 0:02:13.3]} 9... Qd5
{[%clk 0:02:51.5]} 10. Nc3 {[%clk 0:02:03.1]} 10... Qd6 {[%clk 0:02:39.9]} 11.
e4 {[%clk 0:02:02.8]} 11... e5 {[%clk 0:02:40.1]} 12. Nb5 {[%clk 0:01:56.2]}
12... Qe7 {[%clk 0:02:34.3]} 13. dxe5 {[%clk 0:01:48.6]} 13... a6 {[%clk
0:02:33.1]} 14. Nc3 {[%clk 0:01:47.3]} 14... Qxe5 {[%clk 0:02:31.9]} 15. Bc4
{[%clk 0:01:47.1]} 15... Bb4 {[%clk 0:02:25.4]} 16. Qf3 {[%clk 0:01:43.4]} 16...
Qf4 {[%clk 0:02:17.3]} 17. Qd3 {[%clk 0:01:33.6]} 17... Nc6 {[%clk 0:02:11.3]}
18. Rd1 {[%clk 0:01:19]} 18... Bg4 {[%clk 0:01:58.2]} 19. O-O {[%clk 0:01:06.4]}
19... Bxd1 {[%clk 0:01:52.8]} 20. Rxd1 {[%clk 0:01:01.9]} 20... Rd8 {[%clk
0:01:39.6]} 21. Nd5 {[%clk 0:01:03]} 21... Qe5 {[%clk 0:01:36.1]} 22. Qf3 {[%clk
0:00:43.8]} 22... g4 {[%clk 0:00:58.7]} 23. Nf6+ {[%clk 0:00:41.4]} 23... Ke7
{[%clk 0:00:58]} 24. Ng8+ {[%clk 0:00:41.8]} 1-0

[Event "*** Titled Tuesday Blitz"]
[Site "Chess.com"]
[Date "2019.11.05"]
[Round "5"]
[White "mortngabriel"]
[Black "MikeSailer"]
[Result "0-1"]
[WhiteElo "2266"]
[BlackElo "2209"]
[TimeControl "180+2"]
[EndTime "14:05:58 PST"]
[Termination "MikeSailer won on time"]

1. Nf3 {[%clk 0:03:01.9]} 1... d5 {[%clk 0:03:00.7]} 2. e3 {[%clk 0:02:43]} 2...
Nf6 {[%clk 0:03:01.2]} 3. c4 {[%clk 0:02:42.1]} 3... c6 {[%clk 0:02:57.8]} 4.
Nc3 {[%clk 0:02:42.3]} 4... Bf5 {[%clk 0:02:57.6]} 5. Be2 {[%clk 0:02:35.1]}
5... e6 {[%clk 0:02:58.3]} 6. Nh4 {[%clk 0:02:34.2]} 6... Bg6 {[%clk 0:02:57.3]}
7. O-O {[%clk 0:02:33.7]} 7... Bd6 {[%clk 0:02:54.9]} 8. d4 {[%clk 0:02:31.9]}
8... Nbd7 {[%clk 0:02:55.1]} 9. b3 {[%clk 0:02:17.8]} 9... Ne4 {[%clk
0:02:50.9]} 10. Nxe4 {[%clk 0:02:12.7]} 10... Bxh2+ {[%clk 0:02:40.3]} 11. Kxh2
{[%clk 0:02:08.9]} 11... Qxh4+ {[%clk 0:02:40.6]} 12. Kg1 {[%clk 0:02:10.8]}
12... Bxe4 {[%clk 0:02:37]} 13. Ba3 {[%clk 0:02:02.2]} 13... Nf6 {[%clk
0:02:31.5]} 14. Qd2 {[%clk 0:01:45]} 14... h5 {[%clk 0:02:18.3]} 15. f3 {[%clk
0:01:39.3]} 15... Bf5 {[%clk 0:02:05.3]} 16. Qb4 {[%clk 0:01:41.2]} 16... O-O-O
{[%clk 0:02:03.2]} 17. Qa5 {[%clk 0:01:28.4]} 17... Ng4 {[%clk 0:01:46.5]} 18.
fxg4 {[%clk 0:00:55.1]} 18... hxg4 {[%clk 0:01:46.8]} 19. Be7 {[%clk 0:00:34.2]}
19... Qxe7 {[%clk 0:01:35]} 20. g3 {[%clk 0:00:25.2]} 20... Qd6 {[%clk
0:01:14.2]} 21. Rf4 {[%clk 0:00:22.5]} 21... g5 {[%clk 0:01:15]} 22. c5 {[%clk
0:00:17.7]} 22... Qb8 {[%clk 0:01:12.6]} 0-1